[Event "*** Titled Tuesday Blitz"]
[Site "Chess.com"]
[Date "2018.04.03"]
[Round "10"]
[White "Zufi1811"]
[Black "SergeiAza"]
[Result "0-1"]
[WhiteElo "2457"]
[BlackElo "2663"]
[TimeControl "180+2"]
[EndTime "15:16:00 PDT"]
[Termination "SergeiAza won on time"]

1. e4 {[%clk 0:03:01.9]} 1... c5 {[%clk 0:02:58.3]} 2. Nf3 {[%clk 0:03:02.4]}
2... Nc6 {[%clk 0:02:58.5]} 3. Bb5 {[%clk 0:03:02]} 3... e6 {[%clk 0:02:57.9]}
4. O-O {[%clk 0:03:00.5]} 4... Nge7 {[%clk 0:02:58.8]} 5. Re1 {[%clk 0:03:01.7]}
5... Nd4 {[%clk 0:02:59.9]} 6. Bf1 {[%clk 0:02:57.6]} 6... Nxf3+ {[%clk
0:02:56.7]} 7. Qxf3 {[%clk 0:02:59.5]} 7... Nc6 {[%clk 0:02:55.1]} 8. c3 {[%clk
0:02:57.6]} 8... g6 {[%clk 0:02:55]} 9. d3 {[%clk 0:02:45.2]} 9... Bg7 {[%clk
0:02:55.6]} 10. Bf4 {[%clk 0:02:40.7]} 10... d6 {[%clk 0:02:54]} 11. Nd2 {[%clk
0:02:40.2]} 11... O-O {[%clk 0:02:53.3]} 12. Nc4 {[%clk 0:02:36.7]} 12... e5
{[%clk 0:02:54.1]} 13. Bd2 {[%clk 0:02:30.5]} 13... f5 {[%clk 0:02:34.2]} 14.
exf5 {[%clk 0:02:27.9]} 14... Ne7 {[%clk 0:02:33.9]} 15. f6 {[%clk 0:02:24.1]}
15... Rxf6 {[%clk 0:02:31]} 16. Qe2 {[%clk 0:02:23.7]} 16... Rf7 {[%clk
0:02:04.9]} 17. a4 {[%clk 0:02:23.9]} 17... Nc6 {[%clk 0:02:01.3]} 18. g3 {[%clk
0:02:22.3]} 18... Be6 {[%clk 0:01:56.6]} 19. Bg2 {[%clk 0:02:21.1]} 19... Qd7
{[%clk 0:01:54.3]} 20. a5 {[%clk 0:02:08.2]} 20... Raf8 {[%clk 0:01:53.8]} 21.
Rf1 {[%clk 0:02:02.5]} 21... d5 {[%clk 0:01:53]} 22. Ne3 {[%clk 0:02:01.5]}
22... h6 {[%clk 0:01:41.8]} 23. h4 {[%clk 0:01:46.2]} 23... h5 {[%clk
0:01:38.7]} 24. Kh2 {[%clk 0:01:41.3]} 24... Kh7 {[%clk 0:01:37.8]} 25. Qe1
{[%clk 0:01:37.6]} 25... Bh6 {[%clk 0:01:33.9]} 26. c4 {[%clk 0:01:37.1]} 26...
dxc4 {[%clk 0:01:17.4]} 27. dxc4 {[%clk 0:01:08.9]} 27... Nd4 {[%clk 0:01:16]}
28. Rd1 {[%clk 0:00:56.8]} 28... Nf3+ {[%clk 0:01:03.5]} 29. Bxf3 {[%clk
0:00:56.7]} 29... Rxf3 {[%clk 0:01:05.4]} 30. Nd5 {[%clk 0:00:56.2]} 30... Bg7
{[%clk 0:00:44.1]} 31. Bc3 {[%clk 0:00:52.7]} 31... Qf7 {[%clk 0:00:44.3]} 32.
Rd2 {[%clk 0:00:47.9]} 32... Qf5 {[%clk 0:00:34.7]} 33. Kg1 {[%clk 0:00:43.2]}
33... Rf7 {[%clk 0:00:24.5]} 34. Re2 {[%clk 0:00:43.8]} 34... Qd3 {[%clk
0:00:14.6]} 35. Bxe5 {[%clk 0:00:29.3]} 35... Bxe5 {[%clk 0:00:14.5]} 36. Rxe5
{[%clk 0:00:28.2]} 36... Bh3 {[%clk 0:00:15.4]} 37. Re3 {[%clk 0:00:05.6]} 37...
Qxf1+ {[%clk 0:00:11.6]} 38. Qxf1 {[%clk 0:00:03.8]} 38... Bxf1 {[%clk
0:00:13.2]} 39. Kxf1 {[%clk 0:00:04.7]} 39... Rxf2+ {[%clk 0:00:13.9]} 40. Kg1
{[%clk 0:00:05.3]} 40... Rxb2 {[%clk 0:00:14.5]} 41. Nf4 {[%clk 0:00:05.5]}
41... b5 {[%clk 0:00:12.7]} 42. axb6 {[%clk 0:00:03.4]} 42... axb6 {[%clk
0:00:14]} 43. Re6 {[%clk 0:00:04.9]} 43... Ra7 {[%clk 0:00:13.9]} 0-1

[Event "*** Titled Tuesday Blitz"]
[Site "Chess.com"]
[Date "2018.04.03"]
[Round "10"]
[White "PchelkinVK"]
[Black "olomi007"]
[Result "1-0"]
[WhiteElo "2420"]
[BlackElo "2547"]
[TimeControl "180+2"]
[EndTime "15:16:17 PDT"]
[Termination "PchelkinVK won by checkmate"]

1. d4 {[%clk 0:03:01.9]} 1... Nf6 {[%clk 0:03:00.7]} 2. Nc3 {[%clk 0:03:03.2]}
2... d5 {[%clk 0:03:00.9]} 3. Bf4 {[%clk 0:02:55.3]} 3... a6 {[%clk 0:03:01.5]}
4. Nf3 {[%clk 0:02:55.6]} 4... e6 {[%clk 0:03:02.5]} 5. a3 {[%clk 0:02:55.7]}
5... c5 {[%clk 0:03:03.3]} 6. e3 {[%clk 0:02:56.5]} 6... b5 {[%clk 0:03:04.4]}
7. Be2 {[%clk 0:02:52.3]} 7... Bb7 {[%clk 0:03:04.8]} 8. O-O {[%clk 0:02:52]}
8... Nbd7 {[%clk 0:03:05.9]} 9. Ne5 {[%clk 0:02:53.2]} 9... Be7 {[%clk
0:02:58.3]} 10. Bf3 {[%clk 0:02:48]} 10... O-O {[%clk 0:02:57.4]} 11. Ne2 {[%clk
0:02:48.2]} 11... Nxe5 {[%clk 0:02:49.7]} 12. Bxe5 {[%clk 0:02:48.6]} 12... Bd6
{[%clk 0:02:50.4]} 13. Bxd6 {[%clk 0:02:36.7]} 13... Qxd6 {[%clk 0:02:52.3]} 14.
dxc5 {[%clk 0:02:25.4]} 14... Qxc5 {[%clk 0:02:53.1]} 15. c3 {[%clk 0:02:26.1]}
15... a5 {[%clk 0:02:45.5]} 16. Qd4 {[%clk 0:02:25.9]} 16... Rfc8 {[%clk
0:02:45.4]} 17. Nf4 {[%clk 0:02:01.4]} 17... Qd6 {[%clk 0:02:40]} 18. Nd3 {[%clk
0:02:00]} 18... Nd7 {[%clk 0:02:34]} 19. Qf4 {[%clk 0:01:38.1]} 19... e5 {[%clk
0:02:33.3]} 20. Qg3 {[%clk 0:01:39.2]} 20... Qe6 {[%clk 0:02:17]} 21. Be2 {[%clk
0:01:31.2]} 21... Re8 {[%clk 0:02:08.5]} 22. Rfd1 {[%clk 0:01:31]} 22... Nf6
{[%clk 0:02:08.2]} 23. Nc5 {[%clk 0:01:18.6]} 23... Qc6 {[%clk 0:02:06.5]} 24.
b4 {[%clk 0:01:19.2]} 24... Bc8 {[%clk 0:01:58.2]} 25. a4 {[%clk 0:00:51.8]}
25... bxa4 {[%clk 0:01:54.5]} 26. Rxa4 {[%clk 0:00:53.7]} 26... Bf5 {[%clk
0:01:46.7]} 27. Rda1 {[%clk 0:00:51.3]} 27... Nd7 {[%clk 0:01:35.8]} 28. Rxa5
{[%clk 0:00:29]} 28... Nxc5 {[%clk 0:01:26.6]} 29. bxc5 {[%clk 0:00:28.4]} 29...
Rab8 {[%clk 0:01:09.5]} 30. h3 {[%clk 0:00:27.9]} 30... h6 {[%clk 0:01:06]} 31.
Bf3 {[%clk 0:00:19.9]} 31... Bd3 {[%clk 0:01:04.5]} 32. Bd1 {[%clk 0:00:06]}
32... Re7 {[%clk 0:01:01.8]} 33. Ba4 {[%clk 0:00:06.4]} 33... Qc7 {[%clk
0:01:00.2]} 34. Bd1 {[%clk 0:00:07.4]} 34... Bb5 {[%clk 0:00:57.5]} 35. Bf3
{[%clk 0:00:07.2]} 35... Qxc5 {[%clk 0:00:57.2]} 36. Be2 {[%clk 0:00:08.1]}
36... Qxc3 {[%clk 0:00:55.7]} 37. Bxb5 {[%clk 0:00:08.6]} 37... Rxb5 {[%clk
0:00:56.2]} 38. Ra8+ {[%clk 0:00:09.7]} 38... Kh7 {[%clk 0:00:56.1]} 39. Qg4
{[%clk 0:00:11.1]} 39... Rb6 {[%clk 0:00:50.5]} 40. Qf5+ {[%clk 0:00:09.9]}
40... Rg6 {[%clk 0:00:51]} 41. Rb1 {[%clk 0:00:07.8]} 41... Qc7 {[%clk
0:00:15.7]} 42. Rbb8 {[%clk 0:00:08.5]} 42... Qxb8 {[%clk 0:00:17]} 43. Rxb8
{[%clk 0:00:10.4]} 43... d4 {[%clk 0:00:18]} 44. exd4 {[%clk 0:00:10.9]} 44...
exd4 {[%clk 0:00:19.1]} 45. h4 {[%clk 0:00:12.1]} 45... h5 {[%clk 0:00:17.5]}
46. Rd8 {[%clk 0:00:13]} 46... d3 {[%clk 0:00:16.4]} 47. Rxd3 {[%clk 0:00:13.8]}
47... Re1+ {[%clk 0:00:15.7]} 48. Kh2 {[%clk 0:00:14.5]} 48... Re7 {[%clk
0:00:16.9]} 49. Rg3 {[%clk 0:00:15.6]} 49... Kh6 {[%clk 0:00:17.1]} 50. Rg5
{[%clk 0:00:16.9]} 50... Ree6 {[%clk 0:00:17.4]} 51. Rxh5# {[%clk 0:00:17.9]}
1-0

[Event "*** Titled Tuesday Blitz"]
[Site "Chess.com"]
[Date "2018.04.03"]
[Round "10"]
[White "Al_Shima"]
[Black "LastHeroJr"]
[Result "1-0"]
[WhiteElo "2308"]
[BlackElo "2426"]
[TimeControl "180+2"]
[EndTime "15:16:33 PDT"]
[Termination "Al_Shima won on time"]

1. b3 {[%clk 0:03:01.9]} 1... d5 {[%clk 0:02:59]} 2. Bb2 {[%clk 0:03:02.9]} 2...
Bg4 {[%clk 0:03:00]} 3. g3 {[%clk 0:03:03.7]} 3... Nd7 {[%clk 0:02:55.9]} 4. Bg2
{[%clk 0:03:03.9]} 4... Ngf6 {[%clk 0:02:56.9]} 5. h3 {[%clk 0:03:04.3]} 5...
Bh5 {[%clk 0:02:55.9]} 6. g4 {[%clk 0:03:04.1]} 6... Bg6 {[%clk 0:02:56.9]} 7.
g5 {[%clk 0:03:04.6]} 7... Ne4 {[%clk 0:02:44.4]} 8. h4 {[%clk 0:03:05.6]} 8...
Bh5 {[%clk 0:02:38.9]} 9. d3 {[%clk 0:03:00.4]} 9... Nd6 {[%clk 0:02:38.6]} 10.
Bxd5 {[%clk 0:03:00.5]} 10... c6 {[%clk 0:02:39.3]} 11. Bf3 {[%clk 0:02:58.8]}
11... Bxf3 {[%clk 0:02:33.4]} 12. Nxf3 {[%clk 0:03:00.7]} 12... h6 {[%clk
0:02:33.4]} 13. Qd2 {[%clk 0:02:49.2]} 13... hxg5 {[%clk 0:02:31.4]} 14. Qxg5
{[%clk 0:02:51.1]} 14... e6 {[%clk 0:02:17.7]} 15. Qxd8+ {[%clk 0:02:44.9]}
15... Rxd8 {[%clk 0:02:19.6]} 16. Nbd2 {[%clk 0:02:45.7]} 16... f6 {[%clk
0:02:17.3]} 17. O-O-O {[%clk 0:02:45.6]} 17... Kf7 {[%clk 0:02:16.9]} 18. Rdg1
{[%clk 0:02:28.2]} 18... Be7 {[%clk 0:02:11.1]} 19. e4 {[%clk 0:02:28]} 19...
Rh5 {[%clk 0:02:07.1]} 20. Rg4 {[%clk 0:02:23.1]} 20... Rdh8 {[%clk 0:01:55]}
21. Rhg1 {[%clk 0:02:23.8]} 21... R8h7 {[%clk 0:01:56.1]} 22. Nf1 {[%clk
0:02:15.3]} 22... Ne8 {[%clk 0:01:54.6]} 23. Bd4 {[%clk 0:02:09.3]} 23... Ba3+
{[%clk 0:01:41.2]} 24. Kd1 {[%clk 0:02:08.9]} 24... Ra5 {[%clk 0:01:35.9]} 25.
Bc3 {[%clk 0:01:59.7]} 25... Ra6 {[%clk 0:01:29.2]} 26. b4 {[%clk 0:01:59.4]}
26... Ra4 {[%clk 0:01:24.1]} 27. N1d2 {[%clk 0:01:53.5]} 27... e5 {[%clk
0:01:06.7]} 28. Nc4 {[%clk 0:01:35.3]} 28... Bxb4 {[%clk 0:01:06.1]} 29. Bxb4
{[%clk 0:01:34.1]} 29... Rxb4 {[%clk 0:01:06.9]} 30. Kd2 {[%clk 0:01:31.2]}
30... b5 {[%clk 0:01:02.5]} 31. Na5 {[%clk 0:01:07]} 31... c5 {[%clk 0:01:00.2]}
32. Nc6 {[%clk 0:00:53.6]} 32... Ra4 {[%clk 0:01:00.7]} 33. Rb1 {[%clk
0:00:51.7]} 33... a6 {[%clk 0:00:58.1]} 34. Rb2 {[%clk 0:00:48.5]} 34... Nd6
{[%clk 0:00:55.1]} 35. h5 {[%clk 0:00:30.8]} 35... Rh8 {[%clk 0:00:55.7]} 36. h6
{[%clk 0:00:19.4]} 36... Rxh6 {[%clk 0:00:56.2]} 37. Nd8+ {[%clk 0:00:19.9]}
37... Ke7 {[%clk 0:00:46.3]} 38. Nc6+ {[%clk 0:00:20.7]} 38... Kf8 {[%clk
0:00:47.5]} 39. Nd8 {[%clk 0:00:19.6]} 39... Ne8 {[%clk 0:00:39.8]} 40. Ne6+
{[%clk 0:00:11.9]} 40... Kf7 {[%clk 0:00:40.3]} 41. Nd8+ {[%clk 0:00:12.8]}
41... Ke7 {[%clk 0:00:41.5]} 42. Nc6+ {[%clk 0:00:13.9]} 42... Kd6 {[%clk
0:00:41.4]} 43. Nd8 {[%clk 0:00:15]} 43... Rh3 {[%clk 0:00:39.8]} 44. Nh4 {[%clk
0:00:13.7]} 44... Nf8 {[%clk 0:00:22.4]} 45. Nb7+ {[%clk 0:00:06.3]} 45... Kc6
{[%clk 0:00:06.2]} 46. Nd8+ {[%clk 0:00:07.8]} 46... Kd7 {[%clk 0:00:07.3]} 47.
Nb7 {[%clk 0:00:08.4]} 1-0

[Event "*** Titled Tuesday Blitz"]
[Site "Chess.com"]
[Date "2018.04.03"]
[Round "10"]
[White "murmah2003"]
[Black "XDPS"]
[Result "1-0"]
[WhiteElo "2463"]
[BlackElo "2594"]
[TimeControl "180+2"]
[EndTime "15:16:46 PDT"]
[Termination "murmah2003 won on time"]

1. d4 {[%clk 0:02:54.6]} 1... d5 {[%clk 0:02:49.7]} 2. c4 {[%clk 0:02:53.2]}
2... e6 {[%clk 0:02:51.2]} 3. Nc3 {[%clk 0:02:52.2]} 3... Nf6 {[%clk 0:02:52.2]}
4. Nf3 {[%clk 0:02:52.8]} 4... Nbd7 {[%clk 0:02:52.2]} 5. Bf4 {[%clk 0:02:51.5]}
5... dxc4 {[%clk 0:02:51.1]} 6. e3 {[%clk 0:02:50.1]} 6... b5 {[%clk 0:02:49.9]}
7. Nxb5 {[%clk 0:02:50.9]} 7... Nd5 {[%clk 0:02:50]} 8. Nc3 {[%clk 0:02:39.9]}
8... Bb4 {[%clk 0:02:44.6]} 9. a3 {[%clk 0:02:39.9]} 9... Ba5 {[%clk 0:02:34.5]}
10. Bxc4 {[%clk 0:01:49.3]} 10... Nxc3 {[%clk 0:02:21.1]} 11. Qd2 {[%clk
0:01:49.8]} 11... Nb6 {[%clk 0:02:22.1]} 12. Bd3 {[%clk 0:01:09.2]} 12... Nbd5
{[%clk 0:02:19]} 13. O-O {[%clk 0:00:55.8]} 13... O-O {[%clk 0:02:12.7]} 14.
Rac1 {[%clk 0:00:32.2]} 14... Na2 {[%clk 0:01:44.8]} 15. Qxa5 {[%clk 0:00:32.9]}
15... Nxc1 {[%clk 0:01:46.4]} 16. Rxc1 {[%clk 0:00:34.8]} 16... Nxf4 {[%clk
0:01:44.1]} 17. exf4 {[%clk 0:00:36.7]} 17... Bb7 {[%clk 0:01:41.5]} 18. Bxh7+
{[%clk 0:00:28.5]} 18... Kxh7 {[%clk 0:01:42.6]} 19. Qh5+ {[%clk 0:00:29.7]}
19... Kg8 {[%clk 0:01:44]} 20. Ng5 {[%clk 0:00:31.2]} 20... Be4 {[%clk
0:01:45.4]} 21. Nxe4 {[%clk 0:00:21.3]} 21... Qxd4 {[%clk 0:01:41]} 22. Ng5
{[%clk 0:00:21.8]} 22... Qd3 {[%clk 0:01:42.1]} 23. Rd1 {[%clk 0:00:18.4]} 23...
Qc2 {[%clk 0:01:40.1]} 24. h3 {[%clk 0:00:12.2]} 24... Rab8 {[%clk 0:01:16.6]}
25. Rd2 {[%clk 0:00:11.8]} 25... Qb1+ {[%clk 0:01:13]} 26. Kh2 {[%clk
0:00:13.3]} 26... Rb5 {[%clk 0:00:26.7]} 27. Rd8 {[%clk 0:00:05.6]} 27... Rxg5
{[%clk 0:00:13.2]} 28. Rxf8+ {[%clk 0:00:05.4]} 28... Kxf8 {[%clk 0:00:14.5]}
29. Qxg5 {[%clk 0:00:06.9]} 29... f6 {[%clk 0:00:14.7]} 30. Qc5+ {[%clk
0:00:07.6]} 30... Kg8 {[%clk 0:00:16]} 31. Qxc7 {[%clk 0:00:06.7]} 31... Qxb2
{[%clk 0:00:17.3]} 32. Qxa7 {[%clk 0:00:08.6]} 32... Kh7 {[%clk 0:00:16.5]} 33.
Qe3 {[%clk 0:00:09.6]} 33... Qa2 {[%clk 0:00:13.5]} 34. Qd3+ {[%clk 0:00:10.2]}
34... Kg8 {[%clk 0:00:14]} 35. Qe3 {[%clk 0:00:12.1]} 35... Kf7 {[%clk
0:00:14.4]} 36. h4 {[%clk 0:00:13.6]} 36... Qd5 {[%clk 0:00:15.5]} 37. g3 {[%clk
0:00:14.8]} 37... Qh5 {[%clk 0:00:16.5]} 38. Qa7+ {[%clk 0:00:12.9]} 38... Kg6
{[%clk 0:00:17]} 39. a4 {[%clk 0:00:14.8]} 39... Qd5 {[%clk 0:00:17.1]} 40. a5
{[%clk 0:00:15.5]} 40... Qa2 {[%clk 0:00:18.1]} 41. a6 {[%clk 0:00:15.9]} 41...
e5 {[%clk 0:00:17]} 42. fxe5 {[%clk 0:00:16]} 42... fxe5 {[%clk 0:00:18.9]} 43.
Qb6+ {[%clk 0:00:17.4]} 43... Kh7 {[%clk 0:00:20.3]} 44. a7 {[%clk 0:00:19]}
44... e4 {[%clk 0:00:21.7]} 45. Qe3 {[%clk 0:00:19.4]} 45... Kh8 {[%clk
0:00:20.5]} 46. Qb6 {[%clk 0:00:18.2]} 46... Kh7 {[%clk 0:00:21.4]} 47. Qd4
{[%clk 0:00:18.6]} 47... Kh8 {[%clk 0:00:19.9]} 48. Kg2 {[%clk 0:00:12.6]} 48...
e3 {[%clk 0:00:07.9]} 49. Qd8+ {[%clk 0:00:11.2]} 49... Kh7 {[%clk 0:00:08.9]}
50. Qd3+ {[%clk 0:00:12.7]} 50... g6 {[%clk 0:00:09.5]} 51. Qxe3 {[%clk
0:00:14.1]} 51... Qd5+ {[%clk 0:00:11]} 52. Qf3 {[%clk 0:00:15]} 1-0

[Event "*** Titled Tuesday Blitz"]
[Site "Chess.com"]
[Date "2018.04.03"]
[Round "10"]
[White "Manukyan_Artak"]
[Black "WinnerOleg"]
[Result "0-1"]
[WhiteElo "2363"]
[BlackElo "2347"]
[TimeControl "180+2"]
[EndTime "15:16:48 PDT"]
[Termination "WinnerOleg won by checkmate"]

1. e4 {[%clk 0:03:01.8]} 1... Nf6 {[%clk 0:02:58.7]} 2. Nc3 {[%clk 0:03:02.4]}
2... d5 {[%clk 0:02:58.5]} 3. exd5 {[%clk 0:03:02.7]} 3... Nxd5 {[%clk
0:02:59.6]} 4. Bc4 {[%clk 0:03:03.2]} 4... Nb6 {[%clk 0:03:01.1]} 5. Bb3 {[%clk
0:03:03.3]} 5... e6 {[%clk 0:03:02.5]} 6. d4 {[%clk 0:02:58.3]} 6... Be7 {[%clk
0:03:03.2]} 7. Nf3 {[%clk 0:02:57.2]} 7... O-O {[%clk 0:03:04.5]} 8. h4 {[%clk
0:02:54.4]} 8... a5 {[%clk 0:02:58.7]} 9. a3 {[%clk 0:02:53.5]} 9... a4 {[%clk
0:02:54.4]} 10. Ba2 {[%clk 0:02:53.5]} 10... c5 {[%clk 0:02:44.1]} 11. dxc5
{[%clk 0:02:33.2]} 11... Bxc5 {[%clk 0:02:46]} 12. Bg5 {[%clk 0:02:26.5]} 12...
f6 {[%clk 0:02:17]} 13. Qxd8 {[%clk 0:02:03]} 13... Rxd8 {[%clk 0:02:18.9]} 14.
Bf4 {[%clk 0:02:04.2]} 14... Kf8 {[%clk 0:02:06.1]} 15. O-O {[%clk 0:01:43.4]}
15... e5 {[%clk 0:02:06.3]} 16. Be3 {[%clk 0:01:41.4]} 16... Na6 {[%clk
0:01:56.1]} 17. Ne4 {[%clk 0:01:23.4]} 17... Bxe3 {[%clk 0:01:33.3]} 18. fxe3
{[%clk 0:01:24]} 18... Ke7 {[%clk 0:01:34.9]} 19. Ng3 {[%clk 0:01:04.8]} 19...
Be6 {[%clk 0:01:22.5]} 20. e4 {[%clk 0:00:33.4]} 20... Bxa2 {[%clk 0:00:53.1]}
21. Rxa2 {[%clk 0:00:34.2]} 21... Ke6 {[%clk 0:00:53.6]} 22. Nf5 {[%clk
0:00:28.4]} 22... g6 {[%clk 0:00:49.4]} 23. Ne3 {[%clk 0:00:29.4]} 23... Nc5
{[%clk 0:00:37.5]} 24. Nd5 {[%clk 0:00:21]} 24... Nxd5 {[%clk 0:00:37.1]} 25.
exd5+ {[%clk 0:00:22.3]} 25... Rxd5 {[%clk 0:00:39]} 26. h5 {[%clk 0:00:20.4]}
26... Rad8 {[%clk 0:00:38.4]} 27. b4 {[%clk 0:00:20.7]} 27... axb3 {[%clk
0:00:37.2]} 28. cxb3 {[%clk 0:00:21.9]} 28... Nxb3 {[%clk 0:00:39.1]} 29. Rb2
{[%clk 0:00:22.4]} 29... Nc5 {[%clk 0:00:38.9]} 30. hxg6 {[%clk 0:00:22.2]}
30... hxg6 {[%clk 0:00:39.7]} 31. Rb6+ {[%clk 0:00:22.4]} 31... R8d6 {[%clk
0:00:39.5]} 32. Rxd6+ {[%clk 0:00:23.1]} 32... Rxd6 {[%clk 0:00:41.4]} 33. Rb1
{[%clk 0:00:23.3]} 33... e4 {[%clk 0:00:38.8]} 34. Ne1 {[%clk 0:00:23.9]} 34...
Rd2 {[%clk 0:00:35.6]} 35. Rb5 {[%clk 0:00:21.6]} 35... Kd5 {[%clk 0:00:28.9]}
36. Rb6 {[%clk 0:00:22]} 36... Ke5 {[%clk 0:00:28.8]} 37. Rb5 {[%clk 0:00:22.4]}
37... Rd5 {[%clk 0:00:28.6]} 38. Nc2 {[%clk 0:00:22.3]} 38... Ne6 {[%clk
0:00:17.2]} 39. Rxb7 {[%clk 0:00:21.9]} 39... f5 {[%clk 0:00:18.5]} 40. Nb4
{[%clk 0:00:22.8]} 40... Rd1+ {[%clk 0:00:19.3]} 41. Kf2 {[%clk 0:00:24.1]}
41... f4 {[%clk 0:00:20.4]} 42. Rb5+ {[%clk 0:00:24.7]} 42... Kf6 {[%clk
0:00:20]} 43. Nd5+ {[%clk 0:00:25.1]} 43... Kg7 {[%clk 0:00:19.3]} 44. Rb6
{[%clk 0:00:22.4]} 44... Rxd5 {[%clk 0:00:15.8]} 45. Rxe6 {[%clk 0:00:22.5]}
45... Rd2+ {[%clk 0:00:17]} 46. Kf1 {[%clk 0:00:23]} 46... e3 {[%clk 0:00:18.2]}
47. Re4 {[%clk 0:00:23.7]} 47... g5 {[%clk 0:00:19.1]} 48. g3 {[%clk 0:00:24.3]}
48... Rf2+ {[%clk 0:00:19.7]} 49. Kg1 {[%clk 0:00:24.9]} 49... Kf6 {[%clk
0:00:21.6]} 50. gxf4 {[%clk 0:00:25.8]} 50... gxf4 {[%clk 0:00:23.5]} 51. a4
{[%clk 0:00:26.8]} 51... Kf5 {[%clk 0:00:24.5]} 52. Re8 {[%clk 0:00:26.9]} 52...
Kg4 {[%clk 0:00:25.2]} 53. a5 {[%clk 0:00:26.3]} 53... Kf3 {[%clk 0:00:26.4]}
54. a6 {[%clk 0:00:27.5]} 54... Rg2+ {[%clk 0:00:27.8]} 55. Kf1 {[%clk
0:00:28.1]} 55... Ra2 {[%clk 0:00:29.7]} 56. Re6 {[%clk 0:00:28.4]} 56... Ra1#
{[%clk 0:00:30.5]} 0-1

[Event "*** Titled Tuesday Blitz"]
[Site "Chess.com"]
[Date "2018.04.03"]
[Round "10"]
[White "GMHess"]
[Black "Zaven_ChessMood"]
[Result "0-1"]
[WhiteElo "2563"]
[BlackElo "2832"]
[TimeControl "180+2"]
[EndTime "15:17:04 PDT"]
[Termination "Zaven_ChessMood won by resignation"]

1. d4 {[%clk 0:03:01.9]} 1... Nf6 {[%clk 0:03:00.3]} 2. c4 {[%clk 0:03:02.9]}
2... c5 {[%clk 0:03:01.5]} 3. d5 {[%clk 0:03:01.7]} 3... b5 {[%clk 0:03:02.5]}
4. cxb5 {[%clk 0:03:03.1]} 4... a6 {[%clk 0:03:03.1]} 5. b6 {[%clk 0:02:59.4]}
5... d6 {[%clk 0:03:02.5]} 6. g3 {[%clk 0:02:53.7]} 6... Nbd7 {[%clk 0:03:01.7]}
7. Bg2 {[%clk 0:02:52.8]} 7... Nxb6 {[%clk 0:03:02.2]} 8. Nc3 {[%clk 0:02:47.8]}
8... g6 {[%clk 0:03:03.7]} 9. Nf3 {[%clk 0:02:40.3]} 9... Bg7 {[%clk 0:03:05.1]}
10. O-O {[%clk 0:02:41.2]} 10... O-O {[%clk 0:03:06]} 11. e4 {[%clk 0:02:42.3]}
11... Bg4 {[%clk 0:02:59.9]} 12. h3 {[%clk 0:02:41.5]} 12... Bxf3 {[%clk
0:02:59]} 13. Qxf3 {[%clk 0:02:40.9]} 13... Nfd7 {[%clk 0:03:00.2]} 14. Qe2
{[%clk 0:02:41.6]} 14... c4 {[%clk 0:02:38.5]} 15. Be3 {[%clk 0:02:31.4]} 15...
Ne5 {[%clk 0:02:33.9]} 16. Rab1 {[%clk 0:02:29.7]} 16... Rb8 {[%clk 0:02:31.8]}
17. b3 {[%clk 0:02:14.4]} 17... Qc7 {[%clk 0:02:27.5]} 18. Rfc1 {[%clk
0:01:29.1]} 18... Rfc8 {[%clk 0:02:24.4]} 19. Nd1 {[%clk 0:01:06.9]} 19... Nd3
{[%clk 0:02:19.9]} 20. Rc2 {[%clk 0:01:04.5]} 20... Nb4 {[%clk 0:02:14.5]} 21.
Bxb6 {[%clk 0:00:57]} 21... Qxb6 {[%clk 0:02:10.2]} 22. Rxc4 {[%clk 0:00:54]}
22... Qa5 {[%clk 0:02:08.9]} 23. a4 {[%clk 0:00:48.2]} 23... h5 {[%clk
0:02:00.3]} 24. Bf1 {[%clk 0:00:45.9]} 24... Qb6 {[%clk 0:01:53.4]} 25. Qe3
{[%clk 0:00:42.8]} 25... Qd8 {[%clk 0:01:45.9]} 26. Qd2 {[%clk 0:00:33.6]} 26...
Rxc4 {[%clk 0:01:43.1]} 27. Bxc4 {[%clk 0:00:33.8]} 27... Qb6 {[%clk 0:01:42.5]}
28. Ne3 {[%clk 0:00:30.7]} 28... Rc8 {[%clk 0:01:32.8]} 29. Rd1 {[%clk
0:00:17.9]} 29... Bh6 {[%clk 0:01:30.6]} 30. Kg2 {[%clk 0:00:18.1]} 30... Kh7
{[%clk 0:01:27.2]} 31. f4 {[%clk 0:00:15.5]} 31... Rg8 {[%clk 0:01:23.2]} 32.
Qf2 {[%clk 0:00:15.8]} 32... Qc5 {[%clk 0:01:15.4]} 33. Rf1 {[%clk 0:00:13.7]}
33... Qd4 {[%clk 0:01:12.6]} 34. Qf3 {[%clk 0:00:10.2]} 34... a5 {[%clk
0:01:10.8]} 35. Rf2 {[%clk 0:00:08.7]} 35... Rb8 {[%clk 0:01:07]} 36. g4 {[%clk
0:00:09]} 36... Nd3 {[%clk 0:01:04.4]} 37. Bxd3 {[%clk 0:00:07.6]} 37... Qxd3
{[%clk 0:01:05.6]} 38. gxh5 {[%clk 0:00:08.6]} 38... Rxb3 {[%clk 0:01:04.4]} 39.
hxg6+ {[%clk 0:00:09.6]} 39... fxg6 {[%clk 0:01:03.4]} 40. Ng4 {[%clk 0:00:06]}
40... Qc4 {[%clk 0:01:01.1]} 41. Qe2 {[%clk 0:00:05.5]} 41... Qxe2 {[%clk
0:01:01.7]} 42. Rxe2 {[%clk 0:00:07.4]} 42... Bxf4 {[%clk 0:01:02.2]} 43. Rc2
{[%clk 0:00:08.4]} 43... Rg3+ {[%clk 0:00:59.5]} 44. Kf2 {[%clk 0:00:09.3]}
44... Rxh3 {[%clk 0:00:58.8]} 45. Rc7 {[%clk 0:00:10.2]} 45... Bg5 {[%clk
0:00:59.5]} 46. Ra7 {[%clk 0:00:07.5]} 46... Bh4+ {[%clk 0:00:56.4]} 47. Ke2
{[%clk 0:00:07.7]} 47... Rg3 {[%clk 0:00:52.6]} 48. Ne3 {[%clk 0:00:06.7]} 48...
Kh6 {[%clk 0:00:53.8]} 49. Nc4 {[%clk 0:00:06]} 49... Bf6 {[%clk 0:00:51.9]} 50.
Rxa5 {[%clk 0:00:05.4]} 50... Kg5 {[%clk 0:00:51.3]} 51. Ra8 {[%clk 0:00:05.8]}
51... Kf4 {[%clk 0:00:51.7]} 52. Nd2 {[%clk 0:00:06.8]} 52... Re3+ {[%clk
0:00:49.3]} 53. Kd1 {[%clk 0:00:06.3]} 53... g5 {[%clk 0:00:49.7]} 54. a5 {[%clk
0:00:06.1]} 54... g4 {[%clk 0:00:48.6]} 55. a6 {[%clk 0:00:04.9]} 55... Ra3
{[%clk 0:00:47.9]} 56. Ke2 {[%clk 0:00:05]} 56... Ra2 {[%clk 0:00:46.9]} 57. Kd3
{[%clk 0:00:05.6]} 57... g3 {[%clk 0:00:45.4]} 58. a7 {[%clk 0:00:06.6]} 58...
Ra3+ {[%clk 0:00:43]} 59. Kc4 {[%clk 0:00:06.5]} 59... g2 {[%clk 0:00:36.5]} 60.
Rg8 {[%clk 0:00:07]} 60... Bg5 {[%clk 0:00:37.6]} 61. Nf3 {[%clk 0:00:03]} 61...
Kxf3 {[%clk 0:00:35.1]} 62. Rxg5 {[%clk 0:00:04]} 62... Rxa7 {[%clk 0:00:35.6]}
63. Kd4 {[%clk 0:00:04.4]} 63... Ra1 {[%clk 0:00:35.9]} 64. e5 {[%clk
0:00:04.8]} 64... Rd1+ {[%clk 0:00:35.6]} 0-1